bitfinex/quotes_SOLUSD_20250518
["timestamp","ask_amount","ask_price","bid_price","bid_amount"]
[1747593150049,42.90271414,170.2,170.15,37.02727349]
[1747593150258,37.02727349,170.22,170.17,37.02727349]
[1747593150535,63.02727349,170.23,170.18,37.02727349]
[1747593150737,26.08,170.24,170.2,37.02727349]
[1747593151268,28.30987556,170.26,170.22,37.02727349]
[1747593151558,28.30987556,170.26,170.18,5.87613115]
[1747593151559,37.02727349,170.3,170.25,37.02727349]
[1747593151763,37.02727349,170.29,170.24,37.02727349]
[1747593152266,5.87061171,170.34,170.27,37.02727349]
[1747593152450,37.02727349,170.32,170.27,37.02727349]
[1747593152640,26.0,170.33,170.27,37.02727349]
[1747593152840,37.02727349,170.32,170.27,37.02727349]
[1747593153040,37.02727349,170.32,170.21,26.0]
[1747593153041,37.02727349,170.33,170.28,37.02727349]
[1747593153238,5.87105066,170.33,170.29,37.02727349]
[1747593153441,37.02727349,170.32,170.26,37.02727349]
[1747593153639,37.02727349,170.29,170.2,26.04]
[1747593153950,37.02727349,170.27,170.22,37.02727349]
[1747593154149,37.02727349,170.25,170.2,37.02727349]
[1747593154860,37.02727349,170.24,170.19,37.02727349]
[1747593155061,37.02727349,170.22,170.17,6.0269]
[1747593155238,42.90171446,170.23,170.18,37.02727349]
[1747593155559,5.87407624,170.24,170.2,37.02727349]
[1747593155857,26.0,170.27,170.22,37.02727349]
[1747593156165,42.89995378,170.28,170.19,37.02727349]
[1747593156366,5.87268029,170.28,170.25,37.02727349]
[1747593157264,5.87268029,170.28,170.24,37.02727349]
[1747593157462,42.89995378,170.28,170.23,37.02727349]
[1747593157844,42.89995378,170.28,170.19,37.02727349]
[1747593157845,37.02727349,170.26,170.17,6.0269]
[1747593158050,37.02727349,170.24,170.19,37.02727349]
[1747593159367,5.87440521,170.23,170.2,37.02727349]
[1747593159565,5.87302519,170.27,170.22,37.02727349]
[1747593159767,5.87233751,170.29,170.26,37.02727349]
[1747593160072,5.87061171,170.34,170.28,37.02727349]
[1747593160258,152.07163894,170.4,170.33,37.02727349]
[1747593160460,5.86888901,170.39,170.37,37.02727349]
[1747593160769,37.02727349,170.38,170.33,37.02727349]
[1747593160971,5.86888901,170.39,170.35,37.02727349]
[1747593161867,5.86888901,170.39,170.34,37.02727349]
[1747593162066,37.02727349,170.37,170.32,37.02727349]
[1747593162372,37.02727349,170.36,170.32,37.02727349]
[1747593163072,37.02727349,170.36,170.31,37.02727349]
[1747593163254,26.0,170.38,170.31,37.02727349]
[1747593163456,37.02727349,170.34,170.29,37.02727349]
[1747593163640,37.02727349,170.32,170.27,38.57137349]
[1747593163847,37.02727349,170.31,170.26,37.02727349]
[1747593164052,37.02727349,170.32,170.27,37.02727349]
[1747593164265,5.87095637,170.33,170.27,37.02727349]
[1747593164572,5.87095637,170.33,170.29,37.02727349]
[1747593165263,5.8699618,170.36,170.32,37.02727349]
[1747593165467,5.8699618,170.36,170.33,37.02727349]
[1747593165663,63.02727349,170.38,170.26,26.0]
[1747593165664,37.02727349,170.35,170.26,26.0]
[1747593165853,5.86957797,170.37,170.28,37.02727349]
[1747593165854,37.02727349,170.32,170.28,37.02727349]
[1747593166051,37.02727349,170.32,170.27,37.02727349]
[1747593166248,83.5707964,170.37,170.28,37.02727349]
[1747593166455,37.02727349,170.35,170.31,37.02727349]
[1747593166956,37.02727349,170.36,170.31,37.02727349]
[1747593167271,68.89685146,170.37,170.32,37.02727349]
[1747593167975,5.86957797,170.37,170.33,37.02727349]
[1747593168649,37.02727349,170.34,170.22,14.68665504]
[1747593168846,46.54352291,170.37,170.28,37.02727349]
[1747593168847,18.64964886,170.36,170.28,37.02727349]
[1747593169045,37.02727349,170.35,170.3,37.02727349]
[1747593170570,37.02727349,170.36,170.31,37.02727349]
[1747593171574,5.87026709,170.35,170.31,37.02727349]
[1747593172355,137.4,170.4,170.34,37.02727349]
[1747593172672,5.8685446,170.4,170.37,37.02727349]
[1747593173275,5.86812792,170.42,170.38,37.02727349]
[1747593175480,42.89540141,170.42,170.37,37.02727349]
[1747593177883,42.89540141,170.42,170.34,12.40147237]
[1747593178080,42.89540141,170.42,170.37,37.02727349]
[1747593178264,5.86759497,170.43,170.38,37.02727349]
[1747593178638,5.86759497,170.43,170.39,37.02727349]
[1747593178752,137.4,170.45,170.42,37.02727349]
[1747593179679,167.59075201,170.45,170.35,1.17371613]
[1747593179878,167.59075201,170.45,170.4,24.32379294]
[1747593180576,137.4,170.45,170.42,24.32379294]
[1747593180790,137.4,170.45,170.43,24.32379294]
[1747593180988,137.4,170.45,170.44,30.97299294]
[1747593181163,5.86519834,170.5,170.44,30.97299294]
[1747593181364,137.4,170.51,170.48,24.32379294]
[1747593182374,143.26483776,170.51,170.48,24.32379294]
[1747593182577,167.5886307,170.51,170.46,24.32379294]
[1747593182791,24.32379294,170.48,170.44,6.6492]
[1747593182982,24.32379294,170.46,170.42,1.5898]
[1747593183487,24.32379294,170.43,170.38,24.32379294]
[1747593183677,24.32379294,170.42,170.37,25.91359294]
[1747593184192,24.32379294,170.46,170.41,24.32379294]
[1747593184387,24.32379294,170.45,170.4,24.32379294]
[1747593185295,24.32379294,170.43,170.38,24.32379294]
[1747593185589,24.32379294,170.44,170.39,24.32379294]
[1747593185790,36.90280663,170.44,170.39,36.90280663]
[1747593185983,36.90280663,170.45,170.4,36.90280663]
[1747593186590,36.90280663,170.46,170.4,36.90280663]
[1747593186775,36.90280663,170.46,170.41,36.90280663]
[1747593186978,36.90280663,170.45,170.4,36.90280663]
[1747593187373,36.90280663,170.44,170.39,36.90280663]
[1747593187566,36.90280663,170.43,170.38,36.90280663]
[1747593187766,36.90280663,170.41,170.36,6.6492]
[1747593187973,36.90280663,170.4,170.36,6.6492]
[1747593188692,5.86682311,170.45,170.38,36.90280663]
[1747593188894,137.4,170.44,170.41,36.90280663]
[1747593189576,137.4,170.44,170.4,36.90280663]
[1747593189777,137.4,170.44,170.36,6.6492]
[1747593189778,137.4,170.44,170.41,36.90280663]
[1747593189978,36.90280663,170.42,170.36,6.6492]
[1747593190183,36.90280663,170.4,170.32,7.5367]
[1747593190383,137.4,170.39,170.35,36.90280663]
[1747593190608,5.86923347,170.38,170.35,36.90280663]
[1747593190981,5.86923347,170.38,170.32,7.5367]
[1747593191182,42.7720401,170.38,170.33,36.90280663]
[1747593191388,20.54231716,170.38,170.33,36.90280663]
[1747593191675,20.54231716,170.38,170.34,36.90280663]
[1747593191890,5.86751158,170.43,170.37,36.90280663]
[1747593192185,42.77031821,170.43,170.38,36.90280663]
[1747593192391,5.86751158,170.43,170.39,36.90280663]
[1747593195013,20.53629055,170.43,170.38,36.90280663]
[1747593195187,20.53629055,170.43,170.39,36.90280663]
[1747593196076,57.43909718,170.43,170.38,36.90280663]
[1747593196280,36.90280663,170.42,170.37,36.90280663]
[1747593196481,36.90280663,170.4,170.35,36.90280663]
[1747593196680,36.90280663,170.39,170.34,36.90280663]
[1747593197092,18.64964886,170.42,170.34,36.90280663]
[1747593197402,36.90280663,170.39,170.34,36.90280663]
[1747593197599,36.90280663,170.4,170.35,36.90280663]
[1747593197804,5.86923347,170.38,170.34,36.90280663]
[1747593198180,20.53774979,170.42,170.36,36.90280663]
[1747593198397,157.93774979,170.42,170.38,36.90280663]
[1747593198601,137.4,170.41,170.37,36.90280663]
[1747593198802,137.4,170.41,170.32,13.4079783]
[1747593198803,36.90280663,170.4,170.35,36.90280663]
[1747593199111,36.90280663,170.38,170.33,36.90280663]
[1747593199495,137.4,170.4,170.36,36.90280663]
[1747593200006,5.86888901,170.39,170.36,36.90280663]
[1747593200218,5.86888901,170.39,170.32,7.5367]
[1747593200515,5.86888901,170.39,170.36,36.90280663]
[1747593201482,143.26855847,170.4,170.38,36.90280663]
[1747593202304,143.26855847,170.4,170.39,36.90280663]
[1747593203294,143.26855847,170.4,170.38,36.90280663]
[1747593203804,137.4,170.4,170.39,36.90280663]
[1747593204007,143.2685446,170.4,170.39,36.90280663]
[1747593204405,137.4,170.4,170.39,36.90280663]
[1747593204796,137.4,170.4,170.39,36.88280663]
[1747593205528,25.56,170.49,170.39,36.88280663]
[1747593205529,51.56698893,170.49,170.39,36.88280663]
[1747593205824,5.8657907,170.48,170.44,24.31706243]
[1747593206322,44.8473299,170.48,170.43,24.31706243]
[1747593206805,44.8473299,170.48,170.37,30.18655198]
[1747593207305,24.31706243,170.47,170.42,24.31706243]
[1747593207506,20.53026747,170.48,170.43,24.31706243]
[1747593207710,24.31706243,170.47,170.37,30.18662621]
[1747593207886,24.31706243,170.47,170.42,24.31706243]
[1747593208090,5.86647893,170.46,170.43,24.31706243]
[1747593208387,5.8657907,170.48,170.45,24.31706243]
[1747593209412,5.86544665,170.49,170.45,24.31706243]
[1747593209598,20.52906328,170.49,170.45,24.31706243]
[1747593212295,5.86544665,170.49,170.46,24.31706243]
[1747593212510,5.86544665,170.49,170.47,24.31706243]
[1747593213515,30.18182109,170.51,170.46,24.31706243]
[1747593213711,44.84371775,170.51,170.46,24.31706243]
[1747593214214,20.52665532,170.51,170.45,24.31706243]
[1747593214410,24.31706243,170.49,170.44,24.31706243]
[1747593214718,24.31706243,170.5,170.45,24.31706243]
[1747593215518,24.31706243,170.51,170.46,24.31706243]
[1747593216001,24.31706243,170.48,170.41,7.6953]
[1747593216207,24.31706243,170.49,170.44,24.31706243]
[1747593216714,50.31706243,170.51,170.46,24.31706243]
[1747593217100,39.1726933,170.54,170.46,24.31706243]
[1747593217298,39.1726933,170.54,170.41,13.56343584]
[1747593217299,26.0,170.53,170.47,24.31706243]
[1747593217506,5.86475866,170.51,170.47,24.31706243]
[1747593217909,30.18182109,170.51,170.47,24.31706243]
[1747593218515,5.86475866,170.51,170.47,24.31706243]
[1747593218700,5.86475866,170.51,170.48,24.31706243]
[1747593219815,5.86475866,170.51,170.47,24.31706243]
[1747593220321,5.86475866,170.51,170.48,24.31706243]
[1747593221722,5.86475866,170.51,170.49,24.31706243]
[1747593222525,5.86441473,170.52,170.49,24.31706243]
[1747593222825,5.86441473,170.52,170.48,24.31706243]
[1747593223709,20.51702913,170.59,170.51,24.31706243]
[1747593223910,70.83409156,170.59,170.54,24.31706243]
[1747593224109,46.51702913,170.59,170.54,24.31706243]
[1747593224412,70.83409156,170.59,170.54,24.31706243]
[1747593224925,24.31706243,170.58,170.53,24.31706243]
[1747593225112,46.51702913,170.59,170.53,24.31706243]
[1747593225301,24.31706243,170.58,170.53,24.31706243]
[1747593225502,46.51702913,170.59,170.47,26.0]
[1747593225503,46.51702913,170.59,170.54,24.31706243]
[1747593225919,44.83409156,170.59,170.54,24.31706243]
[1747593226311,24.31706243,170.58,170.54,24.31706243]
[1747593226923,5.86269566,170.57,170.54,24.31706243]
[1747593227532,5.86269566,170.57,170.53,24.31706243]
[1747593228028,24.31706243,170.56,170.52,24.31706243]
[1747593228436,24.31706243,170.56,170.46,25.48977653]
[1747593228437,5.86269566,170.57,170.53,24.31706243]
[1747593228620,5.86269566,170.57,170.54,24.31706243]
[1747593230322,24.31706243,170.55,170.45,7.6801]
[1747593230516,24.31706243,170.51,170.45,7.6801]
[1747593230712,24.31706243,170.51,170.46,24.31706243]
[1747593231135,137.4,170.54,170.46,24.31706243]
[1747593231136,24.31706243,170.5,170.46,24.31706243]
[1747593231633,24.31706243,170.49,170.45,31.99716243]
[1747593232011,24.31706243,170.5,170.45,31.99716243]
[1747593232419,24.31706243,170.5,170.46,24.31706243]
[1747593232621,24.31706243,170.5,170.45,31.99716243]
[1747593233320,24.31706243,170.47,170.41,7.6801]
[1747593233641,24.31706243,170.47,170.42,24.31706243]
[1747593233936,137.4,170.49,170.44,24.31706243]
[1747593234109,137.4,170.49,170.46,24.31706243]
[1747593234749,137.4,170.49,170.48,24.31706243]
[1747593236133,137.4,170.49,170.48,30.18285313]
[1747593236345,8.32194267,170.63,170.49,7.6801]
[1747593236534,24.31706243,170.59,170.54,24.31706243]
[1747593237035,24.31706243,170.58,170.53,24.31706243]
[1747593237437,24.31706243,170.59,170.54,24.31706243]
[1747593238032,26.0,170.6,170.55,24.31706243]
[1747593238232,50.31706243,170.6,170.55,24.31706243]
[1747593238947,24.31706243,170.59,170.54,30.18061417]
[1747593239148,24.31706243,170.59,170.54,24.31706243]
[1747593239838,5.86235197,170.58,170.5,5.86510263]
[1747593240015,5.86235197,170.58,170.54,24.31706243]
[1747593240343,24.31706243,170.55,170.5,24.31706243]
[1747593240729,24.31706243,170.54,170.49,31.99716243]
[1747593241522,24.31706243,170.54,170.45,25.2]
[1747593241523,24.31706243,170.52,170.47,24.31706243]
[1747593242219,137.4,170.53,170.48,24.31706243]
[1747593242616,24.31706243,170.52,170.47,24.31706243]
[1747593243445,24.31706243,170.48,170.44,6.612]
[1747593243618,24.31706243,170.48,170.43,24.31706243]
[1747593244019,24.31706243,170.49,170.44,24.31706243]
[1747593244213,137.4,170.5,170.44,24.31706243]
[1747593244422,24.31706243,170.49,170.45,24.31706243]
[1747593244638,24.31706243,170.48,170.43,30.18450129]
[1747593244811,137.4,170.5,170.44,24.31706243]
[1747593245014,161.71706243,170.5,170.45,24.31706243]
[1747593245336,137.4,170.5,170.47,24.31706243]
[1747593246028,137.4,170.5,170.47,30.18290023]
[1747593246346,137.4,170.5,170.48,24.31706243]
[1747593246535,137.4,170.5,170.49,24.31706243]
[1747593246920,18.64964886,170.57,170.49,24.31706243]
[1747593246921,137.4,170.53,170.49,30.42426243]
[1747593247117,137.4,170.53,170.52,24.31706243]
[1747593248047,25.44,170.59,170.53,5.86407083]
[1747593248232,26.0,170.6,170.54,24.31706243]
[1747593248421,24.31706243,170.59,170.54,24.31706243]
[1747593249040,26.0,170.6,170.55,24.31706243]
[1747593249250,24.31706243,170.59,170.54,24.31706243]
[1747593250221,24.31706243,170.58,170.53,30.18113326]
[1747593250729,24.31706243,170.59,170.54,24.31706243]
[1747593251135,26.0,170.6,170.54,24.31706243]
[1747593251632,24.31706243,170.59,170.54,24.31706243]
[1747593252018,161.71706243,170.62,170.58,24.31706243]
[1747593252222,137.4,170.62,170.58,30.17922281]
[1747593252420,161.71706243,170.62,170.58,30.17922281]
[1747593253044,161.71706243,170.62,170.58,5.86216038]
[1747593253265,24.31706243,170.59,170.51,5.86475866]
[1747593253439,24.31706243,170.59,170.54,24.31706243]
[1747593253623,24.31706243,170.6,170.55,24.31706243]
[1747593253825,24.31706243,170.61,170.56,24.31706243]
[1747593254147,43.80964886,170.65,170.59,24.31706243]
[1747593254148,25.16,170.65,170.59,24.31706243]
[1747593254336,75.47706243,170.65,170.61,24.31706243]
[1747593254547,137.4,170.67,170.62,24.31706243]
[1747593254746,137.4,170.67,170.63,24.31706243]
[1747593254926,137.4,170.67,170.64,24.31706243]
[1747593255254,137.4,170.67,170.63,24.31706243]
[1747593255935,24.31706243,170.64,170.59,1.6658]
[1747593256245,31.86056787,170.64,170.59,24.31706243]
[1747593256544,5.85960389,170.66,170.6,24.31706243]
[1747593256938,24.31706243,170.65,170.61,24.31706243]
[1747593258154,5.85960389,170.66,170.62,24.31706243]
[1747593258337,24.31706243,170.63,170.58,24.31706243]
[1747593258536,24.31706243,170.61,170.57,24.31706243]
[1747593258853,24.31706243,170.61,170.56,24.31706243]
[1747593259446,24.31706243,170.61,170.57,24.31706243]
[1747593259629,14.64900972,170.66,170.59,24.31706243]
[1747593259824,14.64900972,170.66,170.55,30.18043039]
[1747593259825,24.31706243,170.66,170.61,24.31706243]
[1747593260043,30.17700969,170.65,170.6,24.31706243]
[1747593260263,24.31706243,170.61,170.54,8.1455]
[1747593260561,24.31706243,170.59,170.54,32.46256243]
[1747593260864,24.31706243,170.62,170.57,24.31706243]
[1747593261359,24.31706243,170.63,170.58,24.31706243]
[1747593261727,30.17804004,170.62,170.57,24.31706243]
[1747593262252,5.86097761,170.62,170.57,24.31706243]
[1747593262566,24.31706243,170.59,170.54,8.1455]
[1747593262727,24.31706243,170.59,170.54,32.46256243]
[1747593262930,24.31706243,170.6,170.55,24.31706243]
[1747593263162,24.31706243,170.58,170.51,26.0]
[1747593263333,24.31706243,170.57,170.52,24.31706243]
[1747593263533,18.64964886,170.57,170.5,8.1455]
[1747593263741,26.0,170.59,170.5,8.1455]
[1747593263742,24.31706243,170.54,170.5,8.1455]
[1747593263955,137.4,170.53,170.52,24.31706243]
[1747593266348,137.4,170.53,170.52,30.18147716]
[1747593266549,137.4,170.53,170.52,24.31706243]
[1747593267171,137.4,170.53,170.51,24.31706243]
[1747593267381,143.26410942,170.53,170.49,24.31706243]
[1747593267559,137.4,170.53,170.5,24.31706243]
[1747593269081,161.71706243,170.52,170.47,24.31706243]
[1747593269289,137.4,170.52,170.5,24.31706243]
[1747593269459,137.4,170.52,170.51,24.31706243]
[1747593269776,137.4,170.52,170.5,24.31706243]
[1747593270386,137.4,170.52,170.51,24.31706243]
[1747593270695,137.4,170.52,170.47,5.8661348]
[1747593270892,137.4,170.52,170.48,24.31706243]
[1747593271254,161.71706243,170.52,170.47,24.31706243]
[1747593271655,152.5918323,170.52,170.47,15.1918323]
[1747593271901,15.1918323,170.51,170.46,7.8566]
[1747593272064,152.5918323,170.5,170.46,23.0484323]
[1747593272267,137.4,170.5,170.46,23.0484323]
[1747593272495,137.4,170.5,170.47,15.1918323]
[1747593272990,137.4,170.5,170.48,15.1918323]
[1747593273193,137.4,170.5,170.49,15.1918323]
[1747593273869,137.4,170.5,170.46,13.72295339]
[1747593274195,137.4,170.5,170.48,15.1918323]
[1747593274375,137.4,170.5,170.48,21.05741932]
[1747593274576,137.4,170.5,170.49,15.1918323]
[1747593275367,137.4,170.5,170.48,5.86558702]
[1747593275582,137.4,170.5,170.49,15.1918323]
[1747593276004,137.4,170.5,170.47,15.1918323]
[1747593276251,137.4,170.5,170.48,15.1918323]
[1747593276365,137.4,170.5,170.49,21.05727895]
[1747593277369,137.4,170.5,170.45,26.0]
[1747593277605,152.5918323,170.5,170.45,15.1918323]
[1747593278066,158.4570205,170.5,170.45,15.1918323]
[1747593278273,152.5918323,170.5,170.45,15.1918323]
[1747593278998,152.5918323,170.5,170.45,21.05831497]
[1747593279304,137.4,170.5,170.47,15.1918323]
[1747593279467,137.4,170.5,170.48,15.1918323]
[1747593280296,137.4,170.5,170.47,15.1918323]
[1747593280470,152.5918323,170.5,170.45,15.1918323]
[1747593281102,15.1918323,170.47,170.42,28.83529798]
[1747593281389,15.1918323,170.47,170.39,24.92]
[1747593281390,15.1918323,170.46,170.41,5.86810216]
[1747593281595,15.1918323,170.46,170.41,21.05993446]
[1747593281895,15.1918323,170.42,170.4,4.5603955]
[1747593282189,15.1918323,170.41,170.39,0.02]
[1747593282573,41.1918323,170.43,170.39,0.02]
[1747593282773,41.1918323,170.43,170.39,15.2118323]
[1747593283170,26.0,170.45,170.39,4.71262838]
[1747593283498,15.1918323,170.43,170.39,0.02]
[1747593283681,24.33467323,170.43,170.39,0.02]
[1747593284577,24.33467323,170.42,170.39,0.02]
[1747593284773,24.33467323,170.41,170.39,0.02]
[1747593285068,26.0,170.43,170.39,0.02]
[1747593285270,50.33467323,170.43,170.39,0.02]
[1747593285478,24.33467323,170.42,170.39,0.02]
[1747593287002,18.64964886,170.37,170.29,24.33467323]
[1747593287212,137.4,170.36,170.32,24.33467323]
[1747593287676,137.4,170.36,170.33,24.33467323]
[1747593287882,137.4,170.35,170.32,24.33467323]
[1747593288083,137.4,170.35,170.34,24.33467323]
[1747593288811,137.4,170.35,170.33,24.33467323]
[1747593289194,137.4,170.35,170.34,24.33467323]
[1747593290300,137.4,170.35,170.32,24.33467323]
[1747593290493,137.4,170.35,170.33,24.33467323]
[1747593291002,137.4,170.35,170.34,5.87061171]
[1747593291897,137.4,170.35,170.32,24.33467323]
[1747593292215,161.73467323,170.35,170.3,5.8719906]
[1747593292422,161.73467323,170.35,170.3,30.20666383]
[1747593292793,24.33467323,170.33,170.3,5.8719906]
[1747593295110,161.73467323,170.34,170.3,5.8719906]
[1747593295625,24.33467323,170.32,170.29,5.87229359]
[1747593295810,161.73467323,170.33,170.29,5.87229359]
[1747593297808,24.33467323,170.3,170.24,7.9629]
[1747593298010,24.33467323,170.3,170.16,29.38317975]
[1747593298011,24.33467323,170.25,170.23,5.87440521]
[1747593298315,24.33467323,170.24,170.17,24.33467323]
[1747593298626,24.33467323,170.22,170.18,5.87613115]
[1747593299207,24.33467323,170.21,170.18,5.87613115]
[1747593300410,24.52385327,170.24,170.17,5.87647646]
[1747593300613,24.33467323,170.2,170.17,5.87647646]
[1747593300920,24.33467323,170.18,170.1,21.30100121]
[1747593301120,24.33467323,170.15,170.1,21.30100121]
[1747593301435,26.0,170.19,170.14,24.33467323]
[1747593301738,26.0,170.18,170.14,24.33467323]
[1747593302122,24.33467323,170.21,170.16,24.33467323]
[1747593302324,24.33467323,170.21,170.16,30.21121622]
[1747593302636,24.33467323,170.2,170.16,5.87654299]
[1747593302833,24.33467323,170.17,170.12,5.87820362]
[1747593303009,24.33467323,170.15,170.12,5.87820362]
[1747593303206,24.33467323,170.13,170.05,22.90922482]
[1747593303441,24.33467323,170.12,170.06,5.88027754]
[1747593303630,24.33467323,170.1,170.06,5.88027754]
[1747593303807,24.33467323,170.09,170.04,24.33467323]
[1747593304010,24.33467323,170.08,170.03,30.21598829]
[1747593304539,24.33467323,170.06,170.01,5.8819621]
[1747593304710,24.33467323,170.05,169.98,24.66]
[1747593304913,24.33467323,170.04,169.99,24.33467323]
[1747593305227,24.33467323,170.03,169.98,30.21771829]
[1747593305426,24.33467323,170.03,169.98,5.88304506]
[1747593305629,24.33467323,170.02,169.98,5.88304506]
[1747593305811,24.33467323,170.02,169.98,24.33467323]
[1747593306013,24.33467323,170.03,169.98,24.33467323]
[1747593306323,24.33467323,170.04,170.0,5.88235294]
[1747593306527,24.33467323,170.04,169.99,24.33467323]
[1747593307046,26.0,170.05,170.0,24.33467323]
[1747593307235,24.33467323,170.04,169.99,5.88252251]
[1747593307426,24.33467323,170.02,169.97,6.4405]
[1747593307742,26.0,170.05,169.99,24.33467323]
[1747593307930,26.0,170.05,170.01,24.33467323]
[1747593308444,24.33467323,170.04,169.99,24.33467323]
[1747593308738,24.33467323,170.02,169.97,24.33467323]
[1747593308914,24.33467323,170.0,169.95,5.88408355]
[1747593309122,24.33467323,169.99,169.94,24.33467323]
[1747593309948,24.33467323,169.97,169.92,32.32627323]
[1747593310115,24.33467323,169.96,169.88,42.38274809]
[1747593310320,24.33467323,169.96,169.91,24.33467323]
[1747593310514,24.33467323,169.96,169.92,24.33467323]
[1747593310752,24.33467323,169.96,169.91,24.33467323]
[1747593311944,26.0,169.98,169.89,5.88616163]
[1747593312147,26.0,169.98,169.94,24.33467323]
[1747593312353,26.0,169.94,169.76,6.1235]
[1747593312649,24.33467323,169.88,169.83,24.33467323]
[1747593312824,24.33467323,169.86,169.77,5.8903222]
[1747593313030,26.0,169.89,169.76,6.1235]
[1747593313031,24.33467323,169.84,169.76,6.1235]
[1747593313341,26.0,169.87,169.76,12.01415764]
[1747593313517,24.33467323,169.86,169.76,12.01415764]
[1747593313721,24.33467323,169.84,169.79,24.33467323]
[1747593313929,24.33467323,169.82,169.76,6.1235]
[1747593314133,24.33467323,169.81,169.76,30.45817323]
[1747593314356,26.0,169.8,169.7,6.1235]
[1747593314659,18.64964886,169.81,169.76,24.33467323]
[1747593314858,24.33467323,169.84,169.79,24.33467323]
[1747593315056,18.64964886,169.87,169.82,24.33467323]
[1747593315235,18.64964886,169.88,169.77,26.0]
[1747593315431,30.50408355,169.95,169.86,24.33467323]
[1747593315634,24.33467323,169.91,169.86,24.33467323]
[1747593315940,24.33467323,169.9,169.85,24.33467323]
[1747593316461,24.62,169.95,169.89,24.33467323]
[1747593316663,5.88235294,170.0,169.94,24.33467323]
[1747593316834,5.88235294,170.0,169.87,5.88685465]
[1747593316835,26.0,169.99,169.95,24.33467323]
[1747593317032,5.88235294,170.0,169.95,24.33467323]
[1747593317249,24.62,170.03,169.94,24.33467323]
[1747593317250,24.33467323,169.99,169.94,24.33467323]
[1747593317456,24.33467323,169.98,169.93,24.33467323]
[1747593317657,37.10304492,169.97,169.87,5.88685465]
[1747593317961,37.10304492,169.92,169.87,37.10304492]
[1747593318161,37.10304492,169.92,169.85,5.88721492]
[1747593318343,37.10304492,169.92,169.87,37.10304492]
[1747593318544,37.10304492,169.93,169.88,37.10304492]
[1747593318753,37.10304492,169.92,169.87,37.10304492]
[1747593319052,37.10304492,169.9,169.84,1.6666]
[1747593319261,37.10304492,169.9,169.85,37.10304492]
[1747593319742,26.0,169.95,169.89,37.10304492]
[1747593320057,24.6,170.02,169.94,37.10304492]
[1747593320230,37.10304492,169.99,169.95,37.10304492]
[1747593320425,37.10304492,169.98,169.94,37.10304492]
[1747593320628,37.10304492,169.97,169.92,37.10304492]
[1747593321252,5.88309556,169.98,169.91,37.10304492]
[1747593321253,37.10304492,169.96,169.91,37.10304492]
[1747593321480,37.10304492,169.94,169.89,37.10304492]
[1747593321681,37.10304492,169.93,169.87,5.88680163]
[1747593321957,26.0,169.95,169.9,37.10304492]
[1747593322176,63.10304492,169.95,169.9,37.10304492]
[1747593322490,37.10304492,169.94,169.87,5.88680163]
[1747593322657,37.10304492,169.94,169.89,37.10304492]
[1747593322984,37.10304492,169.92,169.85,26.0]
[1747593323167,37.10304492,169.91,169.86,37.10304492]
[1747593323753,5.88452746,169.94,169.86,37.10304492]
[1747593323953,37.10304492,169.92,169.87,37.10304492]
[1747593324181,37.10304492,169.93,169.88,37.10304492]
[1747593324500,5.88444004,169.94,169.88,37.10304492]
[1747593324798,63.10304492,169.95,169.9,37.10304492]
[1747593324971,26.0,169.97,169.92,37.10304492]
[1747593325154,63.10304492,169.97,169.92,37.10304492]
[1747593325361,37.10304492,169.98,169.93,37.10304492]
[1747593325860,37.10304492,169.98,169.93,42.98770107]
[1747593326181,37.10304492,169.99,169.94,37.10304492]
[1747593326883,42.98574932,169.99,169.94,37.10304492]
[1747593327086,37.10304492,169.99,169.94,37.10304492]
[1747593327464,42.98579144,169.99,169.94,37.10304492]
[1747593327683,5.88233791,170.01,169.94,37.10304492]
[1747593327881,5.88233791,170.01,169.93,5.88455829]
[1747593327882,37.10304492,169.98,169.92,5.88510303]
[1747593328067,5.88238741,170.0,169.94,37.10304492]
[1747593328263,37.10304492,169.99,169.94,37.10304492]
[1747593329991,69.36964886,170.03,169.96,37.10304492]
[1747593330291,37.10304492,170.01,169.96,37.10304492]
[1747593330473,37.10304492,170.0,169.95,37.10304492]
[1747593330790,37.10304492,169.99,169.94,37.10304492]
[1747593330998,37.10304492,169.98,169.93,43.54614492]
[1747593331170,37.10304492,169.98,169.93,49.43091784]
[1747593331686,37.10304492,169.94,169.88,6.4431]
[1747593331885,37.10304492,169.96,169.91,37.10304492]
[1747593332089,24.72,170.03,169.95,37.10304492]
[1747593332290,5.88163113,170.03,169.92,63.10304492]
[1747593332465,37.10304492,170.03,169.98,37.10304492]
[1747593333096,24.72,170.07,170.01,37.10304492]
[1747593333285,24.72,170.07,169.96,18.64964886]
[1747593333286,61.82304492,170.07,170.03,37.10304492]
[1747593333487,37.10304492,170.07,170.01,37.10304492]
[1747593333692,37.10304492,170.06,170.01,37.10304492]
[1747593333873,37.10304492,170.05,170.0,37.10304492]